fUSD/lending_fUSD_20250504
["ID","MTS","AMOUNT","RATE_DAILY","PERIOD"]
[359868027,1746387046596,-1198.54,0.00019999,2]
[359868028,1746387046605,-1198.54,0.00019999,2]
[359868029,1746387046615,-1198.54,0.00019999,2]
[359868030,1746387046624,-1198.54,0.00019999,2]
[359868031,1746387046634,-1198.57291098,0.00019999,2]
[359868032,1746387046643,-8891.93,0.00019999,2]
[359868033,1746387046652,-8891.93,0.00019999,2]
[359868034,1746387046662,-8891.93,0.00019999,2]
[359868035,1746387046671,-8891.93,0.00019999,2]
[359868036,1746387046680,-8891.93,0.00019999,2]
[359868037,1746387046689,-8891.93,0.00019999,2]
[359868038,1746387046699,-8891.93,0.00019999,2]
[359868039,1746387046708,-8891.93,0.00019999,2]
[359868041,1746387046718,-8891.93,0.00019999,2]
[359868043,1746387046728,-8891.93,0.00019999,2]
[359868044,1746387046737,-8891.93,0.00019999,2]
[359868045,1746387046746,-8891.93,0.00019999,2]
[359868046,1746387046755,-8891.93,0.00019999,2]
[359868047,1746387046764,-8891.93,0.00019999,2]
[359868048,1746387046773,-8891.93,0.00019999,2]
[359868049,1746387046783,-8891.93,0.00019999,2]
[359868050,1746387046791,-8891.93,0.00019999,2]
[359868051,1746387046801,-8891.93,0.00019999,2]
[359868052,1746387046811,-8891.93,0.00019999,2]
[359868053,1746387046820,-8892.13907272,0.00019999,2]
[359868054,1746387046830,-450.0,0.00019999,2]
[359868055,1746387046839,-450.0,0.00019999,2]
[359868056,1746387046848,-450.0,0.00019999,2]
[359868057,1746387046858,-450.0,0.00019999,2]
[359868058,1746387046867,-450.0,0.00019999,2]
[359868059,1746387046877,-450.0,0.00019999,2]
[359868060,1746387046887,-450.0,0.00019999,2]
[359868061,1746387046896,-450.0,0.00019999,2]
[359868062,1746387046905,-450.0,0.00019999,2]
[359868063,1746387046915,-450.0,0.00019999,2]
[359868064,1746387046925,-450.0,0.00019999,2]
[359868065,1746387046935,-450.0,0.00019999,2]
[359868066,1746387046944,-450.0,0.00019999,2]
[359868067,1746387046954,-450.0,0.00019999,2]
[359868068,1746387046963,-450.0,0.00019999,2]
[359868069,1746387046972,-450.0,0.00019999,2]
[359868070,1746387046981,-450.0,0.00019999,2]
[359868071,1746387046990,-258.35055314,0.00019999,2]
[359868072,1746387046999,-450.0,0.00019999,2]
[359868073,1746387047008,-492.34,0.00019999,2]
[359868074,1746387047017,-450.0,0.00019999,2]
[359868075,1746387047027,-450.0,0.00019999,2]
[359868076,1746387047037,-450.0,0.00019999,2]
[359868077,1746387047046,-507.98653925,0.00019999,2]
[359868078,1746387047055,-150.0,0.00019999,2]
[359868079,1746387047064,-150.0,0.00019999,2]
[359868080,1746387047074,-150.0,0.00019999,2]
[359868081,1746387047083,-150.0,0.00019999,2]
[359868082,1746387047092,-150.0,0.00019999,2]
[359868083,1746387047101,-150.0,0.00019999,2]
[359868084,1746387047110,-150.0,0.00019999,2]
[359868085,1746387047120,-541.05,0.00019999,2]
[359868086,1746387047129,-541.05,0.00019999,2]
[359868087,1746387047139,-541.05,0.00019999,2]
[359868088,1746387047150,-541.05,0.00019999,2]
[359868089,1746387047160,-541.05,0.00019999,2]
[359868090,1746387047170,-541.05,0.00019999,2]
[359868091,1746387047179,-541.05,0.00019999,2]
[359868092,1746387047189,-541.05,0.00019999,2]
[359868093,1746387047199,-541.05,0.00019999,2]
[359868094,1746387047208,-541.05,0.00019999,2]
[359868095,1746387047218,-541.05,0.00019999,2]
[359868096,1746387047227,-541.05,0.00019999,2]
[359868097,1746387047237,-541.05,0.00019999,2]
[359868098,1746387047246,-541.05,0.00019999,2]
[359868099,1746387047256,-541.05,0.00019999,2]
[359868100,1746387047266,-541.05,0.00019999,2]
[359868101,1746387047276,-541.05,0.00019999,2]
[359868102,1746387047285,-541.05,0.00019999,2]
[359868103,1746387047295,-541.05,0.00019999,2]
[359868104,1746387047305,-541.17655044,0.00019999,2]
[359868105,1746387047314,-1078.19,0.00019999,2]
[359868106,1746387047324,-1078.19,0.00019999,2]
[359868107,1746387047333,-1078.19,0.00019999,2]
[359868108,1746387047345,-1078.19,0.00019999,2]
[359868109,1746387047355,-1078.19,0.00019999,2]
[359868110,1746387047364,-1078.19,0.00019999,2]
[359868111,1746387047374,-1078.19,0.00019999,2]
[359868112,1746387047383,-1078.19,0.00019999,2]
[359868113,1746387047393,-1078.19,0.00019999,2]
[359868114,1746387047402,-1078.19,0.00019999,2]
[359868115,1746387047412,-1078.19,0.00019999,2]
[359868116,1746387047421,-1078.19,0.00019999,2]
[359868117,1746387047431,-1078.19,0.00019999,2]
[359868118,1746387047441,-1078.19,0.00019999,2]
[359868119,1746387047450,-1078.19,0.00019999,2]
[359868120,1746387047459,-1078.19,0.00019999,2]
[359868121,1746387047469,-1078.19,0.00019999,2]
[359868122,1746387047479,-1078.19,0.00019999,2]
[359868123,1746387047488,-1078.38690949,0.00019999,2]
[359868124,1746387047498,-450.0,0.00019999,2]
[359868125,1746387047507,-450.0,0.00019999,2]
[359868126,1746387047517,-450.0,0.00019999,2]
[359868127,1746387047526,-450.0,0.00019999,2]
[359868128,1746387047536,-450.0,0.00019999,2]
[359868129,1746387047545,-450.0,0.00019999,2]
[359868130,1746387047555,-450.0,0.00019999,2]
[359868131,1746387047565,-450.0,0.00019999,2]
[359868132,1746387047575,-450.0,0.00019999,2]
[359868133,1746387047584,-450.0,0.00019999,2]
[359868134,1746387047594,-450.0,0.00019999,2]
[359868135,1746387047603,-450.0,0.00019999,2]
[359868136,1746387047613,-450.0,0.00019999,2]
[359868137,1746387047623,-450.0,0.00019999,2]
[359868138,1746387047632,-450.0,0.00019999,2]
[359868139,1746387047641,-450.0,0.00019999,2]
[359868140,1746387047651,-450.0,0.00019999,2]
[359868141,1746387047660,-241.56735257,0.00019999,2]
[359868142,1746387047670,-450.0,0.00019999,2]
[359868143,1746387047680,-450.0,0.00019999,2]
[359868144,1746387047689,-450.0,0.00019999,2]
[359868145,1746387047699,-450.0,0.00019999,2]
[359868146,1746387047708,-450.0,0.00019999,2]
[359868147,1746387047718,-450.0,0.00019999,2]
[359868148,1746387047727,-450.0,0.00019999,2]
[359868149,1746387047736,-450.0,0.00019999,2]
[359868150,1746387047746,-455.53,0.00019999,2]
[359868151,1746387047755,-500.0,0.00019999,2]
[359868152,1746387047765,-500.0,0.00019999,2]
[359868153,1746387047775,-500.0,0.00019999,2]
[359868154,1746387047786,-500.0,0.00019999,2]
[359868155,1746387047796,-500.0,0.00019999,2]
[359868156,1746387047805,-500.0,0.00019999,2]
[359868157,1746387047815,-500.0,0.00019999,2]
[359868158,1746387047825,-500.0,0.00019999,2]
[359868159,1746387047835,-438.09792421,0.00019999,2]
[359868160,1746387047845,-500.0,0.00019999,2]
[359868161,1746387047855,-255.57790867,0.00019999,2]
[359868162,1746387047864,-242.70942266,0.00019999,2]
[359868163,1746387047873,-500.0,0.00019999,2]
[359868164,1746387047882,-350.0,0.00019999,2]
[359868165,1746387047892,-500.0,0.00019999,2]
[359868166,1746387047902,-189.25407831,0.00019999,2]
[359868167,1746387047911,-190.18738217,0.00019999,2]
[359868168,1746387047921,-218.35825206,0.00019999,2]
[359868169,1746387047931,-73241.20868069,0.0002,2]
[359868170,1746387048119,-615.90801965,0.0002,2]
[359868171,1746387048137,-180108.0673719,0.0002,2]
[359868172,1746387048193,-1229761.18859077,0.0002,2]
[359868173,1746387048205,-9717.40000012,0.0002,2]
[359868174,1746387048217,-89756.82615808,0.0002,2]
[359868175,1746387048251,-151.0,0.00019996,2]
[359868176,1746387048261,-151.0,0.00019996,2]
[359868177,1746387048275,-1676.5085,0.0002,2]
[359868178,1746387048287,-12021.99351084,0.0002,2]
[359868179,1746387300807,1000.0,0.00018978,2]
[359868180,1746387512551,250.0,0.00017,2]
[359868181,1746387513636,300.0,0.00019,2]
[359868182,1746387667190,587.63,0.00017038,2]
[359868183,1746387667422,587.63,0.00019301,2]
[359868184,1746387981163,-278.08161041,0.000196,5]
[359868185,1746387985746,-211.97696559,0.000196,5]
[359868186,1746388032911,-167.8301629,0.00019502,2]
[359868187,1746388037409,-250.0,0.00019502,2]
[359868188,1746388042479,-72.2284131,0.00019502,2]
[359868189,1746388043057,5080.0,0.000194,5]
[359868196,1746388157924,152.0,0.0003,30]
[359868197,1746388159632,301.45,0.0003,30]
[359868198,1746388232177,-157.88228322,0.000197,2]
[359868199,1746388232187,-250.0,0.00019706,2]
[359868200,1746388232196,-173.93003882,0.00019712,2]
[359868201,1746388232285,-26.06996118,0.00019712,2]
[359868202,1746388232295,-200.0,0.00019725,2]
[359868203,1746388232304,-237.72882044,0.00019787,2]
[359868204,1746388232313,-237.72882043,0.00019794,2]
[359868205,1746388232323,-149.48255655,0.00019799,2]
[359868206,1746388232339,-7.95724415,0.00019799,2]
[359868207,1746388232349,-300.0,0.00019809,2]
[359868208,1746388232358,-300.0,0.00019809,2]
[359868209,1746388232368,-732.77683269,0.00019809,2]
[359868210,1746388232379,-467.22316731,0.00019809,2]
[359868211,1746388232388,-282.10754138,0.00019809,2]
[359868212,1746388232397,-500.0,0.00019873,2]
[359868213,1746388232406,-500.0,0.00019873,2]
[359868214,1746388232415,-207.4,0.00019887,2]
[359868215,1746388232600,-300.0,0.00019898,2]
[359868217,1746388232610,-283.66463137,0.00019899,2]
[359868219,1746388232619,-1000.0,0.00019899,2]
[359868221,1746388232629,-417.8302,0.00019899,2]
[359868223,1746388232638,-1799.72214708,0.00019899,2]
[359868225,1746388232649,-700.27785292,0.00019899,2]
[359868227,1746388232659,-3507.30296083,0.00019899,2]
[359868229,1746388232668,-222.83168776,0.00019899,2]
[359868231,1746388232677,-1935.6779297,0.00019899,2]
[359868233,1746388232686,-3507.30296081,0.00019899,2]
[359868235,1746388232696,-1935.67792965,0.00019899,2]
[359868237,1746388232705,-3507.30296081,0.00019899,2]
[359868239,1746388232714,-1935.67792965,0.00019899,2]
[359868241,1746388232728,-3251.36485756,0.00019899,2]
[359868242,1746388232739,-255.93810325,0.00019899,2]
[359868243,1746388232748,-110.86541628,0.00019899,2]
[359868244,1746388232760,-1824.81251337,0.00019899,2]
[359868245,1746388232769,-1146.43748653,0.00019899,2]
[359868246,1746388238172,-237.72882043,0.000198,2]
[359868247,1746388238182,-1421.99266961,0.00019899,2]
[359868248,1746388238594,-938.87280467,0.00019899,2]
[359868249,1746388238604,-205.90022635,0.00019899,2]
[359868250,1746388238615,-755.0264472,0.00019899,2]
[359868251,1746388238626,-632.58772212,0.00019899,2]
[359868252,1746388238641,-342.16353398,0.00019899,2]
[359868254,1746388238651,-2923.91966057,0.000199,2]
[359868256,1746388240321,-583.38330024,0.000199,2]
[359868257,1746388240331,-1935.67792965,0.000199,2]
[359868258,1746388240341,-3507.30296081,0.000199,2]
[359868259,1746388240350,-1935.67792965,0.000199,2]
[359868260,1746388240360,-3507.30296081,0.000199,2]
[359868261,1746388240370,-1935.67792965,0.000199,2]
[359868262,1746388240380,-3507.30296081,0.000199,2]
[359868263,1746388240389,-1935.67792965,0.000199,2]
[359868264,1746388240399,-64.12082958,0.000199,2]
[359868265,1746388240657,-441.51527042,0.000199,2]
[359868266,1746388240666,-420.14369682,0.000199,2]
[359868267,1746388240677,-3087.15926399,0.000199,2]
[359868268,1746388240686,-6923.41244563,0.000199,2]
[359868269,1746388240695,-1935.67792965,0.000199,2]
[359868270,1746388240703,-3453.14924877,0.000199,2]
[359868271,1746388240712,-324.673,0.00019917,2]
[359868272,1746388240722,-500.0,0.00019973,2]
[359868273,1746388240730,-500.0,0.00019973,2]
[359868274,1746388240739,-500.0,0.00019973,2]
[359868275,1746388240752,-500.0,0.00019973,2]
[359868276,1746388240761,-797.0,0.00019983,2]
[359868277,1746388240769,-416.871,0.00019983,2]
[359868278,1746388240778,-913.0,0.00019983,2]
[359868279,1746388240787,-1451.0,0.00019983,2]
[359868280,1746388240797,-401.64,0.00019983,2]
[359868281,1746388240806,-722.528,0.00019983,2]
[359868282,1746388240816,-450.0,0.00019985,2]
[359868283,1746388240825,-450.0,0.00019985,2]
[359868284,1746388240834,-450.0,0.00019985,2]
[359868285,1746388240843,-450.0,0.00019985,2]
[359868286,1746388240852,-450.0,0.00019985,2]
[359868287,1746388240862,-450.0,0.00019985,2]
[359868288,1746388240871,-450.0,0.00019985,2]
[359868289,1746388240882,-450.0,0.00019985,2]
[359868290,1746388240891,-450.0,0.00019994,2]
[359868291,1746388240902,-150.0,0.00019996,2]
[359868292,1746388240912,-500.0,0.00019996,2]
[359868293,1746388240921,-537.04648005,0.00019998,2]
[359868294,1746388240931,-319.79,0.00019998,2]
[359868295,1746388240940,-682.117239,0.00019998,2]
[359868296,1746388240950,-569.289929,0.00019998,2]
[359868297,1746388240959,-450.0,0.00019998,2]
[359868298,1746388240968,-450.0,0.00019998,2]
[359868299,1746388240977,-450.0,0.00019998,2]
[359868300,1746388240986,-450.0,0.00019998,2]
[359868301,1746388240995,-215.0,0.00019998,2]
[359868302,1746388241005,-477.38,0.00019998,2]
[359868303,1746388241014,-450.0,0.00019998,2]
[359868304,1746388241023,-450.0,0.00019998,2]
[359868305,1746388241032,-450.0,0.00019998,2]
[359868306,1746388241042,-500.0,0.00019998,2]
[359868307,1746388241052,-450.0,0.00019998,2]
[359868308,1746388241061,-450.0,0.00019998,2]
[359868309,1746388241070,-450.0,0.00019998,2]
[359868310,1746388241079,-450.0,0.00019998,2]
[359868311,1746388241089,-450.0,0.00019998,2]
[359868312,1746388241098,-450.0,0.00019998,2]
[359868313,1746388241108,-450.0,0.00019998,2]
[359868314,1746388241117,-473.06,0.00019998,2]
[359868315,1746388241127,-450.0,0.00019998,2]
[359868316,1746388241136,-450.0,0.00019998,2]
[359868317,1746388241146,-177.91,0.00019998,2]
[359868318,1746388241155,-450.0,0.00019998,2]
[359868319,1746388241164,-450.0,0.00019998,2]
[359868320,1746388241174,-450.0,0.00019998,2]
[359868321,1746388241183,-450.0,0.00019998,2]
[359868322,1746388241193,-450.0,0.00019998,2]
[359868323,1746388241202,-450.0,0.00019998,2]
[359868324,1746388241211,-450.0,0.00019998,2]
[359868325,1746388241221,-450.0,0.00019998,2]
[359868326,1746388241230,-450.0,0.00019998,2]
[359868327,1746388241240,-443.44832887,0.00019998,2]
[359868328,1746388241255,-6.55167113,0.00019998,2]
[359868329,1746388241265,-450.0,0.00019998,2]
[359868330,1746388241274,-450.0,0.00019998,2]
[359868331,1746388241283,-450.0,0.00019998,2]
[359868332,1746388241292,-450.0,0.00019998,2]
[359868333,1746388241302,-460.85,0.00019998,2]
[359868334,1746388241311,-450.0,0.00019998,2]
[359868335,1746388241321,-465.03,0.00019998,2]
[359868336,1746388241331,-8620.52,0.00019998,2]
[359868337,1746388241340,-8620.52,0.00019998,2]
[359868338,1746388241349,-8620.52,0.00019998,2]
[359868339,1746388241358,-8620.52,0.00019998,2]
[359868340,1746388241368,-8620.52,0.00019998,2]
[359868341,1746388241377,-8620.52,0.00019998,2]
[359868342,1746388241387,-1023.84,0.00019998,2]
[359868343,1746388241396,-1023.84,0.00019998,2]
[359868344,1746388241406,-1023.84,0.00019998,2]
[359868345,1746388241416,-1023.84,0.00019998,2]
[359868346,1746388241426,-1023.84,0.00019998,2]
[359868347,1746388241435,-1023.84,0.00019998,2]
[359868348,1746388241445,-450.0,0.00019998,2]
[359868349,1746388241455,-450.0,0.00019998,2]
[359868350,1746388241465,-450.0,0.00019998,2]
[359868351,1746388241474,-450.0,0.00019998,2]
[359868352,1746388241483,-544.19653925,0.00019998,2]
[359868353,1746388241493,-450.0,0.00019998,2]
[359868354,1746388241502,-450.0,0.00019998,2]
[359868355,1746388241512,-450.0,0.00019998,2]
[359868356,1746388241521,-450.0,0.00019998,2]
[359868357,1746388241531,-450.0,0.00019998,2]
[359868358,1746388241542,-450.0,0.00019998,2]
[359868359,1746388241552,-1210.61,0.00019998,2]
[359868360,1746388241562,-1210.61,0.00019998,2]
[359868361,1746388241572,-450.0,0.00019998,2]
[359868362,1746388241581,-1210.61,0.00019998,2]
[359868363,1746388241591,-450.0,0.00019998,2]
[359868364,1746388241601,-1210.61,0.00019998,2]
[359868365,1746388241610,-450.0,0.00019998,2]
[359868366,1746388241619,-1210.61,0.00019998,2]
[359868367,1746388241629,-450.0,0.00019998,2]
[359868368,1746388241639,-1210.61,0.00019998,2]
[359868369,1746388241649,-450.0,0.00019998,2]
[359868370,1746388241659,-450.0,0.00019998,2]
[359868371,1746388241668,-450.0,0.00019998,2]
[359868372,1746388241678,-492.34,0.00019998,2]
[359868373,1746388241688,-450.0,0.00019998,2]
[359868374,1746388241698,-450.0,0.00019998,2]
[359868375,1746388241708,-238.35532544,0.00019998,2]
[359868376,1746388241718,-450.0,0.00019998,2]
[359868377,1746388241727,-504.91495127,0.00019998,2]
[359868378,1746388241736,-450.88,0.00019998,2]
[359868379,1746388241751,-450.88,0.00019998,2]
[359868380,1746388241761,-450.88,0.00019998,2]
[359868381,1746388241770,-450.88,0.00019998,2]
[359868382,1746388241780,-450.88,0.00019998,2]
[359868383,1746388241790,-450.88,0.00019998,2]
[359868384,1746388241801,-450.0,0.00019998,2]
[359868385,1746388241809,-450.0,0.00019998,2]
[359868386,1746388241819,-365.78,0.00019998,2]
[359868387,1746388241830,-450.0,0.00019998,2]
[359868388,1746388241841,-450.0,0.00019998,2]
[359868389,1746388241851,-450.0,0.00019998,2]
[359868390,1746388241861,-450.0,0.00019998,2]
[359868391,1746388241871,-450.0,0.00019998,2]
[359868392,1746388241881,-450.0,0.00019998,2]
[359868393,1746388241890,-848.0,0.00019999,2]
[359868394,1746388241900,-268792.35764716,0.00019999,2]
[359868401,1746388243570,-450.0,0.00019998,2]
[359868402,1746388243580,-858.03267182,0.00019999,2]
[359868403,1746388243592,-446.00715571,0.00019999,2]
[359868416,1746388246333,-450.0,0.00019998,2]
[359868417,1746388246343,-450.0,0.00019998,2]
[359868418,1746388246353,-450.0,0.00019998,2]
[359868419,1746388246363,-450.0,0.00019998,2]
[359868420,1746388246372,-2998.56036637,0.00019999,2]
[359868421,1746388246383,-1709.2685373,0.00019999,2]
[359868422,1746388369747,1000.0,0.00019075,2]
[359868423,1746388457939,3628.21,0.00019053,2]
[359868424,1746388485944,167.6721655,8.3e-07,2]
[359868425,1746388562059,150.0,1e-08,2]
[359868426,1746388565748,-5000.0,0.00019999,7]
[359868427,1746388568324,-5000.0,0.00019999,7]
[359868428,1746388571257,-5000.0,0.00019999,7]
[359868429,1746388615283,-550.0,0.00019999,7]
[359868430,1746388647539,-770.0,0.00019999,7]
[359868431,1746388653102,-1500.0,0.00019999,7]
[359868432,1746388654800,-1500.0,0.00019999,7]
[359868433,1746388659213,-1000.0,0.00019999,7]
[359868434,1746388660354,-1000.0,0.00019999,7]
[359868435,1746388663672,-3000.0,0.00019999,7]
[359868436,1746388664578,158.98,0.0001904,2]
[359868437,1746388666140,-500.0,0.00019999,7]
[359868438,1746388667175,-500.0,0.00019999,7]
[359868439,1746388756684,528.86,0.00017095,2]
[359868440,1746388756902,528.86,0.00019359,2]
[359868441,1746388787454,470.0,0.00027945,30]
[359868442,1746388820236,470.0,0.00027945,30]
[359868443,1746389044719,-204.431196,0.00019528,2]
[359868444,1746389044743,-27.6478575,0.00019578,2]
[359868445,1746389048426,-187.11466006,0.00019578,2]
[359868448,1746389339126,250.0,0.00017,2]
[359868449,1746389340217,300.0,0.00019,2]
[359868454,1746389394308,1000.0,0.00018983,2]
[359868458,1746389431404,-250.0,0.00019608,2]
[359868459,1746389431414,-200.0,0.00019638,2]
[359868460,1746389431425,-187.11466006,0.00019699,2]
[359868461,1746389431435,-207.4,0.00019713,2]
[359868462,1746389431444,-1200.0,0.00019724,2]
[359868463,1746389431453,-12.01283994,0.00019724,2]
[359868464,1746389431465,-287.98716006,0.00019724,2]
[359868465,1746389431475,-58237.59112974,0.00019725,2]
[359868466,1746389431484,-157.4398007,0.00019799,2]
[359868467,1746389431494,-166.82432378,0.00019897,2]
[359868468,1746389431503,-234.0567,0.00019898,2]
[359868469,1746389431513,-6701.4819165,0.000199,2]
[359868470,1746389431522,-180.12891608,0.000199,3]
[359868471,1746389431532,-637.3993509,0.0001993,2]
[359868472,1746389431541,-1320.0,0.0001997,2]
[359868473,1746389431553,-500.0,0.00019973,2]
[359868474,1746389431563,-500.0,0.00019973,2]
[359868475,1746389431572,-500.0,0.00019973,2]
[359868476,1746389431581,-1000.0,0.0001998,2]
[359868477,1746389431591,-1000.0,0.0001998,2]
[359868478,1746389431600,-1000.0,0.0001998,2]
[359868479,1746389431610,-1000.0,0.0001998,2]
[359868480,1746389431619,-1343.0,0.0001998,2]
[359868481,1746389431630,-1000.0,0.0001998,2]
[359868482,1746389431640,-1000.0,0.0001998,2]
[359868483,1746389431649,-1000.0,0.0001998,2]
[359868484,1746389431659,-1040.0,0.0001998,2]
[359868485,1746389431668,-797.0,0.00019983,2]
[359868486,1746389431677,-947.734,0.00019983,2]
[359868487,1746389431686,-12082.99097455,0.00019986,2]
[359868488,1746389431698,-417.49656767,0.00019986,2]
[359868497,1746389437381,-166.82432378,0.00019898,2]
[359868498,1746389437391,-5297.46547316,0.00019986,2]
[359868499,1746389437403,-735.05879802,0.00019986,2]
[359868500,1746389437413,-470.0,0.00019996,2]
[359868501,1746389437423,-450.0,0.00019996,2]
[359868502,1746389437433,-470.0,0.00019996,2]
[359868503,1746389437443,-450.0,0.00019996,2]
[359868504,1746389437453,-571.64,0.00019996,2]
[359868505,1746389437464,-568.79,0.00019996,2]
[359868506,1746389437474,-412.38084859,0.00019996,2]
[359868507,1746389437483,-450.0,0.00019996,2]
[359868508,1746389437492,-450.0,0.00019996,2]
[359868509,1746389437501,-470.0,0.00019996,2]
[359868510,1746389437510,-36.86639831,0.00019996,2]
[359868511,1746389437587,-413.13360169,0.00019996,2]
[359868512,1746389437597,-363.23483111,0.00019996,2]
[359868531,1746389439617,-86.76516889,0.00019996,2]
[359868532,1746389439626,-259.44547639,0.00019996,2]
[359868533,1746389439636,-450.0,0.00019996,2]
[359868534,1746389439646,-450.0,0.00019996,2]
[359868535,1746389439655,-450.0,0.00019996,2]
[359868536,1746389439664,-450.0,0.00019996,2]
[359868537,1746389439673,-450.0,0.00019996,2]
[359868538,1746389439682,-450.0,0.00019996,2]
[359868539,1746389439692,-450.0,0.00019996,2]
[359868540,1746389439701,-450.0,0.00019996,2]
[359868541,1746389439710,-470.0,0.00019996,2]
[359868542,1746389439719,-450.0,0.00019996,2]
[359868543,1746389439729,-450.0,0.00019996,2]
[359868544,1746389439738,-450.0,0.00019996,2]
[359868545,1746389439748,-470.0,0.00019996,2]
[359868546,1746389439757,-1291.17,0.00019996,2]
[359868547,1746389439766,-450.0,0.00019996,2]
[359868548,1746389439775,-450.0,0.00019996,2]
[359868549,1746389439784,-450.0,0.00019996,2]
[359868550,1746389439794,-450.0,0.00019996,2]
[359868551,1746389439803,-470.0,0.00019996,2]
[359868552,1746389439812,-450.0,0.00019996,2]
[359868553,1746389439821,-470.0,0.00019996,2]
[359868554,1746389439830,-450.0,0.00019996,2]
[359868555,1746389439839,-470.0,0.00019996,2]
[359868556,1746389439849,-450.0,0.00019996,2]
[359868557,1746389439858,-450.0,0.00019996,2]
[359868558,1746389439867,-555.54113625,0.00019996,2]
[359868559,1746389439876,-450.0,0.00019996,2]
[359868560,1746389439885,-470.0,0.00019996,2]
[359868561,1746389439894,-450.0,0.00019996,2]
[359868562,1746389439904,-450.0,0.00019996,2]
[359868563,1746389439913,-450.0,0.00019996,2]
[359868564,1746389439922,-450.0,0.00019996,2]
[359868565,1746389439931,-1861.83,0.00019996,2]
[359868566,1746389439940,-470.0,0.00019996,2]
[359868567,1746389439949,-240.790862,0.00019996,2]
[359868568,1746389439958,-510.48,0.00019996,2]
[359868569,1746389439967,-470.0,0.00019996,2]
[359868570,1746389439977,-450.0,0.00019996,2]
[359868571,1746389439986,-470.0,0.00019996,2]
[359868572,1746389439995,-450.0,0.00019996,2]
[359868573,1746389440005,-450.0,0.00019996,2]
[359868574,1746389440014,-450.0,0.00019996,2]
[359868575,1746389440024,-470.0,0.00019996,2]
[359868576,1746389440033,-330.49346589,0.00019996,2]
[359868577,1746389440042,-450.0,0.00019996,2]
[359868578,1746389440051,-416.712001,0.00019996,2]
[359868579,1746389440060,-470.0,0.00019996,2]
[359868580,1746389440069,-450.0,0.00019996,2]
[359868581,1746389440079,-470.0,0.00019996,2]
[359868582,1746389440089,-470.0,0.00019996,2]
[359868583,1746389440099,-458.038218,0.00019996,2]
[359868584,1746389440108,-470.0,0.00019996,2]
[359868585,1746389440117,-470.0,0.00019996,2]
[359868586,1746389440126,-450.0,0.00019996,2]
[359868587,1746389440135,-450.0,0.00019996,2]
[359868588,1746389440144,-216.33075597,0.00019997,2]
[359868589,1746389440153,-51659.28007825,0.00019997,2]
[359868590,1746389440373,-166.82432378,0.00019899,2]
[359868591,1746389440383,-2033.17567622,0.00019997,2]
[359868592,1746389440394,-1076.21094039,0.00019997,2]
[359868593,1746389440405,-18051.85177517,0.00019997,2]
[359868594,1746389440421,-1143.14626575,0.00019997,2]
[359868595,1746389440434,-3189.42889516,0.00019997,2]
[359868596,1746389440445,-1401.6,0.00019997,2]
[359868597,1746389440456,-8064.3617255,0.00019997,2]
[359868598,1746389440467,-877.47484588,0.00019997,2]
[359868599,1746389440478,-5564.12740809,0.00019997,2]
[359868600,1746389440500,-43921.15814478,0.00019997,2]
[359868601,1746389440509,-259.738,0.00019997,2]
[359868602,1746389440518,-470.0,0.00019997,2]